[Event "XIII Figueira da Foz Open 2019"]
[Site "Figueira da Foz"]
[Date "2019.11.01"]
[Round "6.8"]
[White "Tadevosyan, Aspet"]
[Black "Medarde Santiago, Luis Marcos"]
[Result "0-1"]
[ECO "A04"]
[WhiteElo "1998"]
[BlackElo "2285"]
[Annotator "NA"]
[PlyCount "54"]
[EventDate "2019.10.27"]
[EventType "swiss"]
[EventCountry "POR"]
[SourceTitle "playchess.com"]
[Source "ChessBase"]
[SourceQuality "1"]
[TimeControl "40/5400+30:1800+30"]

1. Nf3 {[%emt 0:00:00]} c5 {[%emt 0:04:08]} 2. c4 {[%emt 0:00:06]} g6 {[%emt 0:01:17]} 3. Nc3 {[%emt 0:00:33]} Bg7 {[%emt 0:00:07]} 4. e3 {[%emt 0:00:07]} Nf6 {[%emt 0:00:18]} 5. d4 {[%emt 0:00:14]} cxd4 {[%emt 0:00:06]} 6. exd4 {[%emt 0:00:06]} d5 {[%emt 0:00:08]} 7. Bg5 {[%emt 0:04:18]} Ne4 {[%emt 0:21:09]} 8. cxd5 {[%emt 0:22:03]} Nxg5 {[%emt 0:17:56]} 9. Nxg5 {[%emt 0:00:09]} O-O $11 {[%emt 0:03:07]} 10. h4 {[%emt 0:07:31]} Qb6 {[%emt 0:01:07]} 11. Qd2 {[%emt 0:21:15]} Qxd4 {[%emt 0:01:18]} 12. Bd3 {[%emt 0:00:52]} Nd7 {[%emt 0:03:36]} 13. O-O-O {[%emt 0:09:06]} Ne5 {[%emt 0:04:08]} 14. f3 {[%emt 0:04:08]} Bd7 {[%emt 0:02:40]} 15. Qc2 {[%emt 0:03:33]} Rfc8 {[%emt 0:07:28]} 16. Kb1 {[%emt 0:02:17]} Nxd3 {[%emt 0:05:07]} 17. Qxd3 {[%emt 0:01:55]} Bf5 {[%emt 0:01:19]} 18. Nge4 {[%emt 0:02:39]} Qb4 {[%emt 0:00:39]} 19. Rc1 {[%emt 0:01:06]} Bxc3 {[%emt 0:05:28]} 20. Rxc3 {[%emt 0:00:26]} Rxc3 {[%emt 0:00:09]} 21. Qxc3 {[%emt 0:00:15]} Bxe4+ {[%emt 0:00:05]} 22. fxe4 {[%emt 0:00:12]} Qxe4+ {[%emt 0:00:04]} 23. Ka1 {[%emt 0:01:48]} Qxg2 {[%emt 0:03:04]} 24. Rd1 {[%emt 0:00:44]} Qg4 {[%emt 0:00:07]} 25. Rf1 {[%emt 0:02:26]} Rc8 {[%emt 0:00:47]} 26. Qb3 {[%emt 0:00:19]} Qc4 {[%emt 0:01:09]} 27. Qd1 {[%emt 0:01:22]} Rd8 {[%emt 0:00:10]} 0-1

[Event "XIII Figueira da Foz Open 2019"]
[Site "Figueira da Foz"]
[Date "2019.11.01"]
[Round "6.9"]
[White "Guerreiro, Nuno"]
[Black "Rey Malde, Henrique"]
[Result "0-1"]
[ECO "E62"]
[WhiteElo "2069"]
[BlackElo "2209"]
[Annotator "NA"]
[PlyCount "55"]
[EventDate "2019.10.27"]
[EventType "swiss"]
[EventCountry "POR"]
[SourceTitle "playchess.com"]
[Source "ChessBase"]
[SourceQuality "1"]
[TimeControl "40/5400+30:1800+30"]

1. Nf3 {[%emt 0:00:00]} d6 {[%emt 0:00:00]} 2. d4 {[%emt 0:00:10]} Nf6 {[%emt 0:00:05]} 3. g3 {[%emt 0:00:06]} g6 {[%emt 0:00:30]} 4. Bg2 {[%emt 0:00:09]} Bg7 {[%emt 0:00:07]} 5. O-O {[%emt 0:00:06]} O-O {[%emt 0:00:08]} 6. c4 {[%emt 0:00:15]} c6 {[%emt 0:01:02]} 7. Nc3 {[%emt 0:00:22]} Bf5 {[%emt 0:00:08]} 8. Nd2 {[%emt 0:35:47]} Qd7 {[%emt 0:02:31]} 9. Re1 {[%emt 0:01:02]} d5 {[%emt 0:03:57]} 10. e3 {[%emt 0:08:19]} Na6 {[%emt 0:06:18]} 11. a3 {[%emt 0:03:35]} Rad8 $11 {[%emt 0:08:21]} 12. Qa4 {[%emt 0:06:54]} Rfe8 {[%emt 0:18:11]} 13. b4 {[%emt 0:06:12]} Bd3 {[%emt 0:08:43]} 14. cxd5 {[%emt 0:08:56]} cxd5 {[%emt 0:03:01]} 15. Qb3 {[%emt 0:01:27]} Bf5 {[%emt 0:00:38]} 16. b5 {[%emt 0:03:45]} Nc7 {[%emt 0:00:06]} 17. a4 {[%emt 0:05:05]} e5 {[%emt 0:09:36]} 18. dxe5 {[%emt 0:02:13]} Ng4 {[%emt 0:01:11]} 19. e4 {[%emt 0:04:46]} dxe4 {[%emt 0:02:48]} 20. Ndxe4 {[%emt 0:00:40]} Bxe5 {[%emt 0:06:31]} 21. Bg5 {[%emt 0:03:25]} Be6 {[%emt 0:02:00]} 22. Qc2 {[%emt 0:03:10]} f6 {[%emt 0:05:02]} 23. Nc5 {[%emt 0:01:43]} Qd4 {[%emt 0:00:08]} 24. Rxe5 {[%emt 0:01:49]} Qxe5 {[%emt 0:01:53]} 25. Nxb7 {[%emt 0:01:13]} fxg5 {[%emt 0:01:33]} 26. Nxd8 {[%emt 0:00:41]} Rxd8 {[%emt 0:00:05]} 27. Rc1 {[%emt 0:00:44]} Nf6 {[%emt 0:03:58]} 28. Ne2 0-1

[Event "XIII Figueira da Foz Open 2019"]
[Site "Figueira da Foz"]
[Date "2019.11.01"]
[Round "6.10"]
[White "Gavasheli, Ana"]
[Black "Correia, Mario"]
[Result "1-0"]
[ECO "A30"]
[WhiteElo "2240"]
[BlackElo "2140"]
[Annotator "NA"]
[PlyCount "97"]
[EventDate "2019.10.27"]
[EventType "swiss"]
[EventCountry "POR"]
[SourceTitle "playchess.com"]
[Source "ChessBase"]
[SourceQuality "1"]
[TimeControl "40/5400+30:1800+30"]

1. c4 {[%emt 0:00:00]} c5 {[%emt 0:01:17]} 2. Nf3 {[%emt 0:00:00]} g6 {[%emt 0:00:21]} 3. d4 {[%emt 0:00:00]} cxd4 {[%emt 0:00:09]} 4. Nxd4 {[%emt 0:00:00]} Nf6 {[%emt 0:00:08]} 5. Nc3 {[%emt 0:00:16]} Nc6 {[%emt 0:00:08]} 6. e4 {[%emt 0:00:35]} d6 {[%emt 0:00:07]} 7. Be2 {[%emt 0:00:19]} Nxd4 {[%emt 0:00:07]} 8. Qxd4 {[%emt 0:00:05]} Bg7 {[%emt 0:00:06]} 9. Qd1 {[%emt 0:01:37]} O-O {[%emt 0:00:29]} 10. Be3 {[%emt 0:01:32]} Qa5 {[%emt 0:05:46]} 11. O-O {[%emt 0:03:37]} Be6 {[%emt 0:00:29]} 12. Bd4 {[%emt 0:05:45]} Rfc8 {[%emt 0:09:10] B36: Sicilian: Maroczy Bind: Gurgenidze System} 13. b3 {[%emt 0:01:00]} Nd7 {[%emt 0:00:44] [#]} 14. Nd5 $146 {[%emt 0:02:25]} ({Predecessor:} 14. Bxg7 Kxg7 15. Qd3 a6 16. f4 Nf6 17. f5 Bd7 18. fxg6 hxg6 19. Nd5 Nxd5 20. exd5 {½-½ (56) Hammer,J (2610)-Larsen,K (2323) Helsingor 2011}) 14... Qd8 {[%emt 0:03:15]} 15. Rc1 {[%emt 0:06:47]} Nc5 {[%emt 0:02:46]} 16. Bxg7 {[%emt 0:02:48]} Kxg7 {[%emt 0:00:08]} 17. Qd4+ {[%emt 0:00:02]} Kg8 {[%emt 0:00:12]} 18. f4 {[%emt 0:02:52]} Bxd5 {[%emt 0:00:27]} 19. exd5 {[%emt 0:00:55]} Nd7 {[%emt 0:00:35]} 20. Kh1 {[%emt 0:00:34]} Qb6 {[%emt 0:01:42]} 21. Qd2 {[%emt 0:00:25]} a5 {[%emt 0:00:29]} 22. f5 {[%emt 0:04:27]} Kg7 {[%emt 0:00:17]} (22... Ne5 $16) 23. Rc3 {[%emt 0:00:55]} Rh8 {[%emt 0:07:32]} 24. Rh3 {[%emt 0:02:59]} h6 $18 {[%emt 0:00:06]} (24... f6 $16 {was called for.}) 25. fxg6 {[%emt 0:09:43]} f6 {[%emt 0:00:06]} 26. Rf4 {[%emt 0:04:40]} Qb4 {[%emt 0:00:34]} 27. Qc1 {[%emt 0:00:09]} a4 {[%emt 0:01:57]} 28. a3 {[%emt 0:00:16]} Qb6 {[%emt 0:02:35]} 29. b4 {[%emt 0:00:10]} Ne5 {[%emt 0:02:13]} 30. c5 {[%emt 0:00:57]} dxc5 {[%emt 0:00:24]} 31. bxc5 {[%emt 0:00:06]} Rac8 {[%emt 0:00:25]} 32. Rc3 {[%emt 0:00:21]} Qa5 {[%emt 0:01:22]} 33. Rb4 {[%emt 0:01:46]} Rc7 {[%emt 0:03:00]} 34. Bb5 {[%emt 0:08:16]} Rhc8 {[%emt 0:03:31]} 35. c6 {[%emt 0:05:21]} bxc6 {[%emt 0:00:07]} 36. dxc6 {[%emt 0:00:05]} Qa7 {[%emt 0:04:47]} 37. Rh4 {[%emt 0:02:44]} Rh8 {[%emt 0:00:54]} 38. Bxa4 {[%emt 0:01:32]} Qf2 {[%emt 0:05:17]} 39. Rf4 {[%emt 0:00:13]} Qb6 {[%emt 0:02:28]} 40. Rb4 {[%emt 0:00:00]} Qf2 {[%emt 0:00:00]} 41. Rc2 {[%emt 0:10:14]} Qa7 {[%emt 0:04:40]} 42. Bb5 {[%emt 0:00:24]} Rd8 {[%emt 0:01:02]} 43. Rh4 {[%emt 0:03:42]} Rh8 {[%emt 0:00:59]} 44. a4 {[%emt 0:00:40]} h5 {[%emt 0:01:22]} 45. h3 {[%emt 0:02:50]} Nxg6 {[%emt 0:00:58]} 46. Re4 {[%emt 0:00:15]} Ne5 {[%emt 0:02:20]} 47. Rxe5 {[%emt 0:01:10]} fxe5 {[%emt 0:00:08]} 48. Qg5+ {[%emt 0:00:03]} Kf8 {[%emt 0:00:11]} 49. Qxe5 {[%emt 0:02:03]} 1-0

[Event "XIII Figueira da Foz Open 2019"]
[Site "Figueira da Foz"]
[Date "2019.11.01"]
[Round "6.11"]
[White "Lisowski, Krzysztof"]
[Black "Fernandes, Miguel A. Murtinho"]
[Result "0-1"]
[ECO "B15"]
[WhiteElo "2179"]
[BlackElo "2115"]
[Annotator "NA"]
[PlyCount "94"]
[EventDate "2019.10.27"]
[EventType "swiss"]
[EventCountry "POR"]
[SourceTitle "playchess.com"]
[Source "ChessBase"]
[SourceQuality "1"]
[TimeControl "40/5400+30:1800+30"]

1. e4 {[%emt 0:00:00]} c6 {[%emt 0:00:00]} 2. d4 {[%emt 0:00:00]} d5 {[%emt 0:00:02]} 3. Nd2 {[%emt 0:00:00]} dxe4 {[%emt 0:00:06]} 4. Nxe4 {[%emt 0:00:07]} Nf6 {[%emt 0:00:09]} 5. Nxf6+ {[%emt 0:00:34]} exf6 {[%emt 0:00:06]} 6. c3 {[%emt 0:00:35]} Bd6 {[%emt 0:00:07]} 7. Bd3 {[%emt 0:00:26]} O-O {[%emt 0:00:06]} 8. Ne2 {[%emt 0:12:55]} Re8 {[%emt 0:00:15]} 9. Qc2 {[%emt 0:01:33]} h5 {[%emt 0:00:05]} 10. O-O {[%emt 0:00:52]} h4 {[%emt 0:00:06]} 11. h3 {[%emt 0:02:58]} Nd7 {[%emt 0:00:11]} 12. Be3 {[%emt 0:07:27]} Nf8 {[%emt 0:00:30]} 13. Qd2 {[%emt 0:08:10]} g5 {[%emt 0:00:37]} 14. c4 {[%emt 0:05:15]} Bb8 {[%emt 0:03:24]} 15. f4 {[%emt 0:15:59]} Qe7 {[%emt 0:05:42]} 16. Rf3 {[%emt 0:05:25]} (16. Bf2 $16) 16... g4 {[%emt 0:02:28]} 17. hxg4 {[%emt 0:00:12]} Bxg4 {[%emt 0:00:06]} 18. Raf1 $17 {[%emt 0:00:09]} (18. Bf2 $11) 18... f5 {[%emt 0:02:04]} 19. d5 {[%emt 0:06:18]} Bd6 {[%emt 0:08:27]} 20. Nd4 {[%emt 0:15:58]} Bc5 {[%emt 0:04:14]} 21. Kh2 {[%emt 0:07:59]} Qf6 {[%emt 0:12:21]} 22. Nxf5 {[%emt 0:03:13]} Bxe3 {[%emt 0:00:09]} 23. Nxe3 {[%emt 0:00:18]} Bxf3 {[%emt 0:00:45]} 24. Rxf3 {[%emt 0:00:28]} Ng6 {[%emt 0:01:38]} 25. Ng4 {[%emt 0:01:52]} Qg7 {[%emt 0:00:52]} 26. f5 {[%emt 0:01:43]} Ne5 {[%emt 0:01:12]} 27. Nxe5 {[%emt 0:00:42]} Qxe5+ {[%emt 0:00:41]} 28. Kh3 {[%emt 0:00:10]} Qf6 {[%emt 0:01:09]} 29. Rf4 {[%emt 0:00:38]} Re5 {[%emt 0:04:54]} 30. Rxh4 {[%emt 0:00:28]} Rae8 {[%emt 0:00:45]} 31. Rg4+ {[%emt 0:01:14]} Kf8 {[%emt 0:00:23]} 32. Rg3 {[%emt 0:00:57]} Qh8+ {[%emt 0:02:23]} 33. Kg4 {[%emt 0:00:09]} Qg7+ {[%emt 0:02:02]} 34. Kh3 {[%emt 0:00:20]} Re3 {[%emt 0:07:29]} 35. Rf3 {[%emt 0:00:05]} Qh6+ {[%emt 0:02:03]} 36. Kg4 {[%emt 0:00:14]} f6 {[%emt 0:00:38]} 37. Qb4+ {[%emt 0:01:09]} Kg8 {[%emt 0:01:09]} 38. Qd6 {[%emt 0:01:36]} Qg5+ {[%emt 0:07:33]} 39. Kh3 {[%emt 0:00:06]} R3e7 {[%emt 0:00:39]} 40. g4 {[%emt 0:00:00]} Rh7+ {[%emt 0:00:00]} 41. Kg2 {[%emt 0:04:24]} Qd2+ {[%emt 0:01:26]} 42. Kg1 {[%emt 0:03:34]} Qd1+ {[%emt 0:03:00]} 43. Kf2 {[%emt 0:04:44]} Qe1+ {[%emt 0:00:04]} 44. Kg2 {[%emt 0:00:07]} Qh1+ {[%emt 0:00:04]} 45. Kf2 {[%emt 0:00:10]} Rh2+ {[%emt 0:00:08]} 46. Kg3 {[%emt 0:00:07]} Rg2+ {[%emt 0:00:12]} 47. Kf4 {[%emt 0:00:09]} Qh6+ {[%emt 0:00:13]} 0-1

[Event "XIII Figueira da Foz Open 2019"]
[Site "Figueira da Foz"]
[Date "2019.11.01"]
[Round "6.12"]
[White "Silva, Mariana Sofia T."]
[Black "Goncalves, Lucas Jordao"]
[Result "1-0"]
[ECO "A06"]
[WhiteElo "1880"]
[BlackElo "1447"]
[Annotator "NA"]
[PlyCount "101"]
[EventDate "2019.10.27"]
[EventType "swiss"]
[EventCountry "POR"]
[SourceTitle "playchess.com"]
[Source "ChessBase"]
[SourceQuality "1"]
[TimeControl "40/5400+30:1800+30"]

1. Nf3 {[%emt 0:10:32]} d5 {[%emt 0:00:00]} 2. g3 {[%emt 0:00:07]} Nf6 {[%emt 0:00:44]} 3. Bg2 {[%emt 0:00:08]} g6 {[%emt 0:01:07]} 4. b3 {[%emt 0:00:10]} Bg7 {[%emt 0:00:13]} 5. Bb2 {[%emt 0:00:08]} O-O {[%emt 0:00:27]} 6. c4 {[%emt 0:01:21]} dxc4 {[%emt 0:03:58]} 7. bxc4 {[%emt 0:00:09]} c6 {[%emt 0:00:16]} 8. O-O {[%emt 0:04:52]} Be6 {[%emt 0:01:29]} 9. d3 {[%emt 0:01:45]} Qc8 {[%emt 0:00:40]} 10. Nbd2 {[%emt 0:04:30]} c5 {[%emt 0:02:15]} 11. Ng5 {[%emt 0:11:07]} Bd7 {[%emt 0:01:58]} 12. Rb1 {[%emt 0:01:54]} Nc6 {[%emt 0:00:10]} 13. Re1 {[%emt 0:08:37]} Rb8 {[%emt 0:07:42]} 14. Nge4 {[%emt 0:04:56]} Nxe4 {[%emt 0:00:09]} 15. Nxe4 $11 {[%emt 0:00:16]} Bxb2 {[%emt 0:00:08]} 16. Rxb2 {[%emt 0:00:13]} Nd4 {[%emt 0:00:22]} 17. Qd2 {[%emt 0:03:27]} Qc7 {[%emt 0:00:27]} 18. Qg5 {[%emt 0:04:40]} e5 {[%emt 0:00:28]} 19. Nf6+ {[%emt 0:05:11]} Kg7 {[%emt 0:00:09]} 20. Nd5 {[%emt 0:04:33]} Qd6 {[%emt 0:00:33]} 21. Reb1 {[%emt 0:04:35]} b5 {[%emt 0:01:32]} 22. cxb5 {[%emt 0:04:10]} Rxb5 {[%emt 0:02:02]} 23. Rxb5 {[%emt 0:01:29]} Bxb5 {[%emt 0:00:08]} 24. Nc3 {[%emt 0:01:48]} f6 {[%emt 0:01:26]} 25. Qd2 {[%emt 0:02:31]} Bc6 {[%emt 0:00:28]} 26. Bxc6 {[%emt 0:01:09]} Qxc6 {[%emt 0:00:34]} 27. Qb2 {[%emt 0:02:36]} Rf7 {[%emt 0:00:16]} 28. Ne4 {[%emt 0:04:47]} c4 {[%emt 0:00:58]} 29. Rc1 {[%emt 0:00:55]} Rb7 {[%emt 0:00:14]} 30. Qd2 {[%emt 0:00:27]} Rd7 {[%emt 0:22:57]} 31. Qe3 {[%emt 0:04:48]} Qa4 {[%emt 0:01:22]} 32. Nc5 {[%emt 0:01:12]} Qa3 {[%emt 0:00:39]} 33. Rxc4 {[%emt 0:02:39]} Re7 {[%emt 0:00:09]} 34. Rxd4 {[%emt 0:02:51]} Qxc5 {[%emt 0:00:29]} 35. Rc4 {[%emt 0:01:38]} Qb6 {[%emt 0:04:04]} 36. Qxb6 {[%emt 0:00:24]} axb6 {[%emt 0:00:05]} 37. Rb4 {[%emt 0:00:21]} Ra7 {[%emt 0:00:47]} 38. a4 {[%emt 0:00:07]} Ra6 {[%emt 0:00:06]} 39. Kf1 {[%emt 0:00:19]} Kf7 {[%emt 0:00:06]} 40. Ke1 {[%emt 0:00:00]} Ke7 {[%emt 0:00:00]} 41. Kd2 {[%emt 0:00:34]} Kd7 {[%emt 0:00:33]} 42. Kc3 {[%emt 0:00:21]} Kd6 {[%emt 0:00:37]} 43. Kb3 {[%emt 0:02:34]} h6 {[%emt 0:00:27]} 44. Rc4 {[%emt 0:01:08]} Ra8 {[%emt 0:00:21]} 45. Kb4 {[%emt 0:00:55]} Ra5 {[%emt 0:06:15]} 46. Rc8 {[%emt 0:01:12]} Rc5 {[%emt 0:00:11]} 47. Rxc5 {[%emt 0:00:18]} bxc5+ {[%emt 0:00:06]} 48. Kb5 {[%emt 0:01:32]} f5 {[%emt 0:00:08]} 49. Kb6 {[%emt 0:00:27]} e4 {[%emt 0:00:08]} 50. a5 {[%emt 0:00:13]} f4 {[%emt 0:01:00]} 51. gxf4 {[%emt 0:00:16]} 1-0

[Event "XIII Figueira da Foz Open 2019"]
[Site "Figueira da Foz"]
[Date "2019.11.01"]
[Round "6.13"]
[White "Gama, Joao Goncalo Cerejei"]
[Black "Soares, Luis Francisco Almei"]
[Result "1/2-1/2"]
[ECO "B52"]
[WhiteElo "1712"]
[BlackElo "2024"]
[Annotator "NA"]
[PlyCount "102"]
[EventDate "2019.10.27"]
[EventType "swiss"]
[EventCountry "POR"]
[SourceTitle "playchess.com"]
[Source "ChessBase"]
[SourceQuality "1"]
[TimeControl "40/5400+30:1800+30"]

1. e4 c5 {[%emt 0:00:03]} 2. Nf3 {[%emt 0:00:00]} d6 3. Bb5+ {[%emt 0:00:00]} Bd7 {[%emt 0:00:20]} 4. Bxd7+ {[%emt 0:00:00]} Nxd7 {[%emt 0:00:10]} 5. O-O Ngf6 {[%emt 0:00:17]} 6. Qe2 {[%emt 0:00:44]} e6 {[%emt 0:01:34]} 7. Rd1 {[%emt 0:01:32]} Be7 {[%emt 0:01:51]} 8. c3 {[%emt 0:00:33]} O-O {[%emt 0:04:03]} 9. d4 {[%emt 0:01:10]} cxd4 {[%emt 0:00:11]} 10. cxd4 {[%emt 0:01:23]} Rc8 {[%emt 0:06:26]} 11. Nc3 {[%emt 0:14:10]} Nb6 {[%emt 0:05:48]} 12. h4 {[%emt 0:07:24]} d5 {[%emt 0:04:44]} 13. Bg5 {[%emt 0:17:12]} (13. e5 $5 {[%cal Re5f6]} Nfd7 14. g3 $11) 13... Nxe4 {[%emt 0:05:14]} 14. Bxe7 $2 {[%emt 0:17:42]} (14. Nxe4 $15 dxe4 15. Qxe4) 14... Nxc3 {[%emt 0:02:50]} ({Not} 14... Qxe7 15. Nxe4 dxe4 16. Qxe4 $15) 15. bxc3 {[%emt 0:00:52]} Qxe7 {[%emt 0:00:23]} 16. Rdc1 $19 {[%emt 0:01:01]} Rc7 {[%emt 0:10:10]} 17. a4 {[%emt 0:03:04]} Rfc8 {[%emt 0:05:12]} 18. a5 {[%emt 0:13:05]} Nc4 {[%emt 0:05:38]} 19. Qd3 {[%emt 0:03:10]} Nd6 20. Nd2 {[%emt 0:05:44]} Rc6 {[%emt 0:03:14]} 21. f3 Qc7 {[%emt 0:04:29]} 22. Ra3 {[%emt 0:01:39]} a6 {[%emt 0:02:42]} 23. Nb1 {[%emt 0:06:48]} Nc4 {[%emt 0:00:40]} 24. Rb3 {[%emt 0:04:16]} Nxa5 25. Rb4 {[%emt 0:01:09]} Nc4 {[%emt 0:02:08]} 26. Nd2 Nxd2 {[%emt 0:03:04]} 27. Qxd2 {[%emt 0:00:34]} b5 {[%emt 0:00:41]} 28. Rb3 Qb6 29. Kh1 {[%emt 0:02:35]} h6 {[%emt 0:02:59]} 30. Qb2 {[%emt 0:01:38]} Rc4 {[%emt 0:03:17]} 31. Ra1 R8c6 {[%emt 0:03:15]} 32. Rba3 {[%emt 0:02:23]} Qb7 {[%emt 0:02:22]} 33. Rb3 {[%emt 0:01:02]} Qc8 {[%emt 0:00:45]} 34. Raa3 {[%emt 0:03:42]} Qc7 {[%emt 0:01:11]} 35. Qd2 b4 {[%emt 0:02:52]} 36. Ra1 {[%emt 0:02:16]} bxc3 {[%emt 0:00:39]} 37. Qd3 {[%emt 0:00:21]} c2 {[%emt 0:00:55]} 38. Rc1 Rc3 {[%emt 0:00:59]} 39. Rxc3 {[%emt 0:00:17]} Rxc3 {[%emt 0:00:09]} 40. Qxa6 {[%emt 0:00:00]} Rb3 {[%emt 0:00:00]} 41. Qa2 Rd3 {[%emt 0:06:53]} 42. Qa4 {[%emt 0:02:07]} Qc3 {[%emt 0:02:39]} 43. Rxc2 {[%emt 0:03:11]} Qxd4 {[%emt 0:04:03]} 44. Qe8+ {[%emt 0:01:33]} Kh7 {[%emt 0:00:07]} 45. Qxf7 {[%emt 0:00:27]} Rd1+ {[%emt 0:00:11]} 46. Kh2 Qe5+ 47. f4 {[%emt 0:02:39]} Qf6 {[%emt 0:12:44]} 48. Qxf6 {[%emt 0:02:37]} gxf6 {[%emt 0:00:09]} 49. Re2 {[%emt 0:00:14]} Kg6 {[%emt 0:01:27]} 50. Rxe6 {[%emt 0:00:09]} d4 {[%emt 0:01:51]} 51. g4 {[%emt 0:06:36]} Rd3 {[%emt 0:05:11]} 1/2-1/2

[Event "XIII Figueira da Foz Open 2019"]
[Site "Figueira da Foz"]
[Date "2019.11.01"]
[Round "6.15"]
[White "Marcal, Armando Paulo Gomes"]
[Black "Dong, Fabio"]
[Result "0-1"]
[ECO "B12"]
[WhiteElo "1706"]
[BlackElo "1410"]
[Annotator "NA"]
[PlyCount "83"]
[EventDate "2019.10.27"]
[EventType "swiss"]
[EventCountry "POR"]
[SourceTitle "playchess.com"]
[Source "ChessBase"]
[SourceQuality "1"]
[TimeControl "40/5400+30:1800+30"]

1. e4 c6 2. d4 d5 3. e5 Bf5 4. Ne2 e6 5. Ng3 Bg6 6. h4 h6 7. h5 Bh7 8. Bd3 Bxd3 9. Qxd3 Nd7 10. Nd2 c5 11. c3 cxd4 12. cxd4 Ne7 13. a3 Nc6 14. O-O Be7 15. Nf3 O-O 16. Be3 Rc8 17. Rfc1 Qb6 18. Ne2 Na5 19. Nd2 Nc4 20. Nxc4 Rxc4 21. Rxc4 dxc4 22. Qd2 Qb5 23. Nc3 Qc6 24. Rd1 Nb6 25. Qe2 Nd5 26. Qg4 Nxe3 27. fxe3 Bg5 28. Qe2 b5 29. Rf1 a5 30. Qf2 b4 31. axb4 axb4 32. Ne2 Qe4 33. Nf4 Bxf4 34. exf4 Rd8 35. Rd1 c3 36. bxc3 bxc3 37. g3 c2 38. Rc1 Rxd4 39. Qxc2 Qe3+ 40. Kh1 Rd2 41. Qc6 Qf2 42. Qa8+ 0-1

[Event "XIII Figueira da Foz Open 2019"]
[Site "Figueira da Foz"]
[Date "2019.11.01"]
[Round "6.16"]
[White "Puglia, Francesco"]
[Black "Babo, Miguel"]
[Result "1-0"]
[ECO "B00"]
[WhiteElo "1916"]
[BlackElo "1827"]
[Annotator "NA"]
[PlyCount "119"]
[EventDate "2019.10.27"]
[EventType "swiss"]
[EventCountry "POR"]
[SourceTitle "playchess.com"]
[Source "ChessBase"]
[SourceQuality "1"]
[TimeControl "40/5400+30:1800+30"]

1. e4 {[%emt 0:07:10]} Nc6 {[%emt 0:06:25]} 2. Nf3 {[%emt 0:00:17]} f5 {[%emt 0:00:06]} 3. exf5 {[%emt 0:06:01]} d5 {[%emt 0:00:18]} 4. d4 {[%emt 0:05:08]} Bxf5 {[%emt 0:01:20]} 5. Bd3 {[%emt 0:10:25]} Bxd3 {[%emt 0:10:09]} 6. Qxd3 {[%emt 0:00:05]} e6 {[%emt 0:04:27]} 7. O-O {[%emt 0:04:35]} Qd7 {[%emt 0:04:00]} 8. c3 {[%emt 0:02:41]} Be7 {[%emt 0:03:07]} (8... Bd6 $11) 9. Re1 {[%emt 0:01:11]} O-O-O {[%emt 0:02:20]} 10. b4 {[%emt 0:00:25]} Bf6 $18 {[%emt 0:03:34]} 11. a4 {[%emt 0:02:14]} Re8 {[%emt 0:02:04]} 12. a5 {[%emt 0:06:45]} Nge7 {[%emt 0:05:02]} 13. b5 {[%emt 0:02:18]} Nd8 {[%emt 0:01:47]} 14. Bf4 {[%emt 0:02:51]} c6 {[%emt 0:01:27]} 15. bxc6 {[%emt 0:03:24]} Nexc6 {[%emt 0:00:30]} 16. Na3 {[%emt 0:00:30]} Nf7 {[%emt 0:00:30]} 17. Ne5 {[%emt 0:28:33]} Bxe5 {[%emt 0:08:18]} 18. Bxe5 {[%emt 0:01:19]} Nfxe5 {[%emt 0:01:44]} 19. dxe5 {[%emt 0:00:26]} a6 {[%emt 0:00:23]} 20. Nc2 {[%emt 0:06:29]} Qc7 {[%emt 0:04:11]} 21. Nd4 {[%emt 0:00:27]} Nxe5 {[%emt 0:01:03]} 22. Qg3 {[%emt 0:00:52]} Nc4 {[%emt 0:07:25]} 23. Qxc7+ {[%emt 0:04:34]} Kxc7 {[%emt 0:00:14]} 24. Nxe6+ Kd7 25. Nxg7 {[%emt 0:02:22]} Rxe1+ {[%emt 0:06:16]} 26. Rxe1 {[%emt 0:00:03]} Nxa5 {[%emt 0:00:12]} 27. f4 {[%emt 0:00:55]} Nc4 {[%emt 0:01:17]} 28. f5 Rf8 29. g4 {[%emt 0:00:58]} Rf7 {[%emt 0:02:57]} 30. Ne6 {[%emt 0:00:51]} Nd6 {[%emt 0:08:08]} 31. Rd1 h5 32. h3 {[%emt 0:01:05]} hxg4 {[%emt 0:00:49]} 33. hxg4 {[%emt 0:00:04]} Nxf5 {[%emt 0:00:25]} 34. gxf5 {[%emt 0:00:20]} Rxf5 {[%emt 0:00:16]} 35. Nd4 {[%emt 0:00:29]} Rf6 {[%emt 0:02:37]} 36. Ne2 {[%emt 0:00:49]} Kc6 {[%emt 0:00:44]} 37. Rb1 {[%emt 0:00:34]} b5 {[%emt 0:01:26]} 38. Ra1 {[%emt 0:01:12]} Kc5 {[%emt 0:00:32]} 39. Rd1 {[%emt 0:00:00]} a5 {[%emt 0:00:00]} 40. Nd4 {[%emt 0:00:00]} a4 {[%emt 0:00:00]} 41. Rb1 {[%emt 0:02:31]} Rb6 {[%emt 0:05:59]} 42. Rb4 {[%emt 0:00:33]} a3 {[%emt 0:03:40]} 43. Kf2 {[%emt 0:00:52]} a2 {[%emt 0:02:07]} 44. Ke3 {[%emt 0:04:38]} Ra6 {[%emt 0:01:20]} 45. Nb3+ {[%emt 0:01:37]} Kc6 {[%emt 0:00:47]} 46. Na1 {[%emt 0:03:46]} Kc5 {[%emt 0:00:27]} 47. Kd3 {[%emt 0:04:37]} Ra8 {[%emt 0:10:45]} 48. Kc2 {[%emt 0:01:10]} Kc6 {[%emt 0:02:11]} 49. Kb2 {[%emt 0:00:37]} Ra4 {[%emt 0:10:52]} 50. Rxa4 {[%emt 0:15:26]} bxa4 {[%emt 0:00:10]} 51. Nc2 {[%emt 0:00:45]} Kc5 {[%emt 0:00:34]} 52. Kxa2 {[%emt 0:00:24]} Kc4 {[%emt 0:01:52]} 53. Kb2 {[%emt 0:00:03]} Kd3 {[%emt 0:00:53]} 54. Na3 {[%emt 0:00:53]} Kd2 {[%emt 0:00:37]} 55. Nb5 {[%emt 0:00:17]} Kd3 {[%emt 0:00:14]} 56. Ka3 {[%emt 0:00:27]} Kc4 {[%emt 0:00:19]} 57. Kxa4 {[%emt 0:00:23]} Kc5 {[%emt 0:00:10]} 58. Ka5 {[%emt 0:00:41]} Kc6 {[%emt 0:01:24]} 59. Kb4 {[%emt 0:00:38]} Kb6 {[%emt 0:00:12]} 60. Nd4 {[%emt 0:00:12]} 1-0